fUSD/lending_fUSD_20260523
["ID","MTS","AMOUNT","RATE_DAILY","PERIOD"]
[422847269,1779522633000,-500.0,9.496e-05,2]
[422847272,1779522633000,-500.0,9.496e-05,2]
[422847270,1779522633000,-242.24058013,9.496e-05,2]
[422847273,1779522633000,-414.72722824,9.496e-05,2]
[422847310,1779522633000,-615.0,9.496e-05,2]
[422847289,1779522633000,-615.0,9.496e-05,2]
[422847309,1779522633000,-615.0,9.496e-05,2]
[422847335,1779522633000,-393.11300669,9.496e-05,2]
[422847336,1779522633000,-500.0,9.496e-05,2]
[422847337,1779522633000,-500.0,9.496e-05,2]
[422847340,1779522633000,-176.12149068,9.496e-05,2]
[422847338,1779522633000,-150.0,9.496e-05,2]
[422847342,1779522633000,-500.0,9.496e-05,2]
[422847339,1779522633000,-500.0,9.496e-05,2]
[422847343,1779522633000,-500.0,9.496e-05,2]
[422847341,1779522633000,-500.0,9.496e-05,2]
[422847344,1779522633000,-500.0,9.496e-05,2]
[422847345,1779522633000,-500.0,9.496e-05,2]
[422847346,1779522633000,-500.0,9.496e-05,2]
[422847334,1779522633000,-500.0,9.496e-05,2]
[422847347,1779522633000,-500.0,9.496e-05,2]
[422847349,1779522633000,-500.0,9.496e-05,2]
[422847352,1779522633000,-500.0,9.496e-05,2]
[422847300,1779522633000,-615.0,9.496e-05,2]
[422847355,1779522633000,-500.0,9.496e-05,2]
[422847351,1779522633000,-500.0,9.496e-05,2]
[422847353,1779522633000,-500.0,9.496e-05,2]
[422847350,1779522633000,-500.0,9.496e-05,2]
[422847356,1779522633000,-500.0,9.496e-05,2]
[422847357,1779522633000,-500.0,9.496e-05,2]
[422847359,1779522633000,-500.0,9.496e-05,2]
[422847358,1779522633000,-500.0,9.496e-05,2]
[422847360,1779522633000,-500.0,9.496e-05,2]
[422847348,1779522633000,-505.7497438,9.496e-05,2]
[422847333,1779522633000,-500.0,9.496e-05,2]
[422847354,1779522633000,-500.0,9.496e-05,2]
[422847327,1779522633000,-500.0,9.496e-05,2]
[422847328,1779522633000,-500.0,9.496e-05,2]
[422847301,1779522633000,-615.0,9.496e-05,2]
[422847304,1779522633000,-615.0,9.496e-05,2]
[422847305,1779522633000,-615.0,9.496e-05,2]
[422847306,1779522633000,-615.0,9.496e-05,2]
[422847311,1779522633000,-617.41851285,9.496e-05,2]
[422847313,1779522633000,-500.0,9.496e-05,2]
[422847314,1779522633000,-500.0,9.496e-05,2]
[422847319,1779522633000,-500.0,9.496e-05,2]
[422847321,1779522633000,-150.0,9.496e-05,2]
[422847322,1779522633000,-500.0,9.496e-05,2]
[422847315,1779522633000,-500.0,9.496e-05,2]
[422847307,1779522633000,-615.0,9.496e-05,2]
[422847320,1779522633000,-500.0,9.496e-05,2]
[422847331,1779522633000,-164.07026904,9.496e-05,2]
[422847318,1779522633000,-150.0,9.496e-05,2]
[422847332,1779522633000,-150.76637349,9.496e-05,2]
[422847326,1779522633000,-500.0,9.496e-05,2]
[422847330,1779522633000,-500.0,9.496e-05,2]
[422847325,1779522633000,-150.0,9.496e-05,2]
[422847329,1779522633000,-150.0,9.496e-05,2]
[422847323,1779522633000,-500.0,9.496e-05,2]
[422847317,1779522633000,-500.0,9.496e-05,2]
[422847312,1779522633000,-500.0,9.496e-05,2]
[422847316,1779522633000,-500.0,9.496e-05,2]
[422847324,1779522633000,-500.0,9.496e-05,2]
[422847383,1779522634000,-166.73,9.796e-05,2]
[422847388,1779522634000,-213.39715726,0.00010043,2]
[422847384,1779522634000,-4925.0,9.881e-05,2]
[422847385,1779522634000,-221.17,9.937e-05,2]
[422847386,1779522634000,-239.19,0.00010027,2]
[422847387,1779522634000,-6189.44997344,0.00010043,2]
[422847382,1779522634000,-621.98422306,9.77e-05,2]
[422847390,1779522634000,-15068.0,0.00010064,2]
[422847394,1779522634000,-160.0,0.00010226,2]
[422847392,1779522634000,-208.78535381,0.00010226,2]
[422847391,1779522634000,-210.56,0.00010099,2]
[422847393,1779522634000,-215.31523495,0.00010226,2]
[422847395,1779522634000,-239.19,0.00010278,2]
[422847396,1779522634000,-255.0,0.00010445,2]
[422847381,1779522634000,-500.0,9.77e-05,2]
[422847397,1779522634000,-1680.0,0.00010445,2]
[422847389,1779522634000,-193.88866467,0.00010043,2]
[422847380,1779522634000,-334.68457076,9.77e-05,2]
[422847364,1779522634000,-250.0,9.641e-05,2]
[422847378,1779522634000,-500.0,9.77e-05,2]
[422847398,1779522634000,-214.24,0.00010517,2]
[422847369,1779522634000,-600.19347208,9.77e-05,2]
[422847361,1779522634000,-500.0,9.496e-05,2]
[422847368,1779522634000,-500.0,9.77e-05,2]
[422847362,1779522634000,-567.87255349,9.496e-05,2]
[422847363,1779522634000,-166.73,9.538e-05,2]
[422847367,1779522634000,-500.0,9.77e-05,2]
[422847366,1779522634000,-762.0267,9.67e-05,2]
[422847365,1779522634000,-250.0,9.641e-05,2]
[422847371,1779522634000,-500.0,9.77e-05,2]
[422847370,1779522634000,-500.0,9.77e-05,2]
[422847372,1779522634000,-500.0,9.77e-05,2]
[422847373,1779522634000,-153.50299616,9.77e-05,2]
[422847377,1779522634000,-500.0,9.77e-05,2]
[422847376,1779522634000,-500.0,9.77e-05,2]
[422847375,1779522634000,-500.0,9.77e-05,2]
[422847374,1779522634000,-500.0,9.77e-05,2]
[422847379,1779522634000,-500.0,9.77e-05,2]
[422847402,1779522634000,-210.56,0.00010661,2]
[422847400,1779522634000,-245.16480038,0.00010553,2]
[422847401,1779522634000,-2000.0,0.00010633,2]
[422847421,1779522634000,-1873.71047012,0.000109,2]
[422847428,1779522634000,-1254.41808677,0.00010986,2]
[422847422,1779522634000,-233.1563622,0.00010925,2]
[422847425,1779522634000,-151.0,0.00010959,2]
[422847426,1779522634000,-166.66,0.00010969,2]
[422847430,1779522634000,-264.025242,0.00011,2]
[422847424,1779522634000,-150.0,0.00010959,2]
[422847429,1779522634000,-10578.42143867,0.00010986,2]
[422847431,1779522634000,-4066.81771332,0.00011,2]
[422847433,1779522634000,-508.75950126,0.00011015,2]
[422847438,1779522634000,-666.0,0.00011024,2]
[422847439,1779522634000,-7111.5147917,0.00011025,2]
[422847440,1779522634000,-4253.23252581,0.00011025,2]
[422847432,1779522634000,-3017.79422518,0.00011,2]
[422847435,1779522634000,-242.60110754,0.00011024,2]
[422847434,1779522634000,-273.52991582,0.00011024,2]
[422847437,1779522634000,-300.0,0.00011024,2]
[422847427,1779522634000,-23436.16047456,0.00010986,2]
[422847423,1779522634000,-331.03543655,0.00010925,2]
[422847436,1779522634000,-300.0,0.00011024,2]
[422847416,1779522634000,-151.0,0.00010811,2]
[422847399,1779522634000,-239.19,0.00010529,2]
[422847403,1779522634000,-239.19,0.00010779,2]
[422847405,1779522634000,-225906.77602061,0.00010811,2]
[422847406,1779522634000,-33575.38255081,0.00010811,2]
[422847407,1779522634000,-21405.63062668,0.00010811,2]
[422847419,1779522634000,-3000.0,0.000109,3]
[422847408,1779522634000,-24664.0333964,0.00010811,2]
[422847409,1779522634000,-5725.6755299,0.00010811,2]
[422847404,1779522634000,-2000.0,0.000108,3]
[422847410,1779522634000,-301.027556,0.00010811,2]
[422847412,1779522634000,-301.027556,0.00010811,2]
[422847413,1779522634000,-301.027556,0.00010811,2]
[422847414,1779522634000,-151.0,0.00010811,2]
[422847417,1779522634000,-6974.328979,0.00010811,2]
[422847420,1779522634000,-1873.71047014,0.000109,2]
[422847418,1779522634000,-6469.6499646,0.00010811,2]
[422847415,1779522634000,-151.0,0.00010811,2]
[422847411,1779522634000,-301.027556,0.00010811,2]
[422847462,1779522640000,-500.0,0.00010063,2]
[422847464,1779522640000,-500.0,0.00010063,2]
[422847469,1779522640000,-500.0,0.00010063,2]
[422847468,1779522640000,-500.0,0.00010063,2]
[422847471,1779522640000,-500.0,0.00011024,2]
[422847467,1779522640000,-500.0,0.00010063,2]
[422847465,1779522640000,-500.0,0.00010063,2]
[422847475,1779522640000,-301.027556,0.00011025,2]
[422847470,1779522640000,-500.0,0.00011024,2]
[422847472,1779522640000,-915059.71152509,0.00011025,2]
[422847473,1779522640000,-6469.6499647,0.00011025,2]
[422847479,1779522640000,-151.0,0.00011025,2]
[422847481,1779522640000,-243.542998,0.00011025,2]
[422847480,1779522640000,-151.0,0.00011025,2]
[422847474,1779522640000,-301.027556,0.00011025,2]
[422847461,1779522640000,-500.0,0.00010063,2]
[422847466,1779522640000,-500.0,0.00010063,2]
[422847460,1779522640000,-500.0,0.00010063,2]
[422847450,1779522640000,-500.0,0.00010063,2]
[422847457,1779522640000,-500.0,0.00010063,2]
[422847476,1779522640000,-301.027556,0.00011025,2]
[422847442,1779522640000,-372.60927676,0.00010063,2]
[422847447,1779522640000,-500.0,0.00010063,2]
[422847444,1779522640000,-160.931487,0.00010063,2]
[422847446,1779522640000,-500.0,0.00010063,2]
[422847443,1779522640000,-127.39072324,0.00010063,2]
[422847445,1779522640000,-339.068513,0.00010063,2]
[422847449,1779522640000,-500.0,0.00010063,2]
[422847448,1779522640000,-500.0,0.00010063,2]
[422847453,1779522640000,-500.0,0.00010063,2]
[422847452,1779522640000,-500.0,0.00010063,2]
[422847451,1779522640000,-500.0,0.00010063,2]
[422847455,1779522640000,-500.0,0.00010063,2]
[422847454,1779522640000,-500.0,0.00010063,2]
[422847456,1779522640000,-500.0,0.00010063,2]
[422847459,1779522640000,-500.0,0.00010063,2]
[422847458,1779522640000,-500.0,0.00010063,2]
[422847463,1779522640000,-500.0,0.00010063,2]
[422847478,1779522640000,-151.0,0.00011025,2]
[422847477,1779522640000,-301.027556,0.00011025,2]
[422847485,1779522640000,-239.19,0.0001103,2]
[422847512,1779522640000,-251.13945625,0.00011581,2]
[422847514,1779522640000,-331.0354365,0.00011588,2]
[422847518,1779522640000,-9882.30041285,0.00011633,2]
[422847516,1779522640000,-11016.91447822,0.00011595,2]
[422847522,1779522640000,-210.56,0.00011783,2]
[422847510,1779522640000,-182.41,0.000115,2]
[422847529,1779522640000,-305.63426364,0.00011999,2]
[422847527,1779522640000,-2000.0,0.00011962,2]
[422847520,1779522640000,-4805.6,0.00011758,2]
[422847531,1779522640000,-421.51951156,0.00011999,2]
[422847533,1779522640000,-73910.31359115,0.00012,2]
[422847535,1779522640000,-158.734533,0.00012,2]
[422847537,1779522640000,-180.68883568,0.00012,2]
[422847539,1779522640000,-151.652701,0.00012,2]
[422847541,1779522640000,-301.027556,0.00012,2]
[422847543,1779522640000,-301.027556,0.00012,2]
[422847482,1779522640000,-151.0,0.00011025,2]
[422847498,1779522640000,-9999.99,0.00011281,2]
[422847497,1779522640000,-698.72,0.00011281,2]
[422847524,1779522640000,-166.66,0.00011874,2]
[422847500,1779522640000,-9999.99,0.00011281,2]
[422847490,1779522640000,-11016.91447822,0.00011099,2]
[422847496,1779522640000,-97654.98,0.00011281,2]
[422847484,1779522640000,-151.52628247,0.00011025,2]
[422847486,1779522640000,-9882.30041292,0.00011099,2]
[422847493,1779522640000,-221.17,0.00011179,2]
[422847492,1779522640000,-11016.91447822,0.00011099,2]
[422847494,1779522640000,-210.56,0.00011222,2]
[422847488,1779522640000,-9882.30041285,0.00011099,2]
[422847483,1779522640000,-151.0,0.00011025,2]
[422847489,1779522640000,-11016.91447825,0.00011099,2]
[422847487,1779522640000,-9882.30041285,0.00011099,2]
[422847495,1779522640000,-151.0,0.00011281,2]
[422847506,1779522640000,-2351.0,0.00011489,2]
[422847504,1779522640000,-433.0,0.00011489,2]
[422847508,1779522640000,-254.87,0.000115,2]
[422847499,1779522640000,-150.99,0.00011281,2]
[422847502,1779522640000,-1873.71047012,0.00011374,2]
[422847501,1779522640000,-999.99,0.00011281,2]
[422847605,1779522641000,-500.0,0.00012365,2]
[422847603,1779522641000,-500.0,0.00012365,2]
[422847599,1779522641000,-500.0,0.00012365,2]
[422847596,1779522641000,-500.0,0.00012365,2]
[422847602,1779522641000,-500.0,0.00012365,2]
[422847594,1779522641000,-500.0,0.00012365,2]
[422847598,1779522641000,-500.0,0.00012365,2]
[422847607,1779522641000,-500.0,0.00012365,2]
[422847601,1779522641000,-500.0,0.00012365,2]
[422847611,1779522641000,-500.0,0.00012365,2]
[422847622,1779522641000,-500.0,0.00012365,2]
[422847609,1779522641000,-500.0,0.00012365,2]
[422847615,1779522641000,-500.0,0.00012365,2]
[422847624,1779522641000,-500.0,0.00012365,2]
[422847619,1779522641000,-500.0,0.00012365,2]
[422847617,1779522641000,-500.0,0.00012365,2]
[422847626,1779522641000,-500.0,0.00012365,2]
[422847630,1779522641000,-500.0,0.00012365,2]
[422847628,1779522641000,-500.0,0.00012365,2]
[422847597,1779522641000,-500.0,0.00012365,2]
[422847613,1779522641000,-500.0,0.00012365,2]
[422847592,1779522641000,-500.0,0.00012365,2]
[422847551,1779522641000,-1873.71047012,0.00012079,2]
[422847586,1779522641000,-500.0,0.00012365,2]
[422847642,1779522641000,-500.0,0.00012365,2]
[422847549,1779522641000,-153.790793,0.00012,2]
[422847547,1779522641000,-301.027556,0.00012,2]
[422847545,1779522641000,-301.027556,0.00012,2]
[422847553,1779522641000,-151.0,0.00012087,2]
[422847555,1779522641000,-151.0,0.00012087,2]
[422847558,1779522641000,-151.0,0.00012146,2]
[422847560,1779522641000,-11016.91447822,0.00012146,2]
[422847572,1779522641000,-151.0,0.00012226,2]
[422847588,1779522641000,-500.0,0.00012365,2]
[422847562,1779522641000,-9882.30041285,0.00012177,2]
[422847566,1779522641000,-301.027556,0.0001222,2]
[422847568,1779522641000,-301.027556,0.0001222,2]
[422847574,1779522641000,-331.0354365,0.0001225,2]
[422847570,1779522641000,-301.027556,0.0001222,2]
[422847576,1779522641000,-886.61,0.00012329,2]
[422847578,1779522641000,-210.56,0.00012344,2]
[422847580,1779522641000,-500.0,0.00012365,2]
[422847584,1779522641000,-500.0,0.00012365,2]
[422847582,1779522641000,-500.0,0.00012365,2]
[422847564,1779522641000,-301.027556,0.0001222,2]
[422847632,1779522641000,-500.0,0.00012365,2]
[422847590,1779522641000,-500.0,0.00012365,2]
[422847644,1779522641000,-500.0,0.00012365,2]
[422847703,1779522641000,-500.0,0.00012365,2]
[422847693,1779522641000,-500.0,0.00012365,2]
[422847701,1779522641000,-500.0,0.00012365,2]
[422847685,1779522641000,-500.0,0.00012365,2]
[422847691,1779522641000,-500.0,0.00012365,2]
[422847697,1779522641000,-500.0,0.00012365,2]
[422847699,1779522641000,-500.0,0.00012365,2]
[422847695,1779522641000,-500.0,0.00012365,2]
[422847705,1779522641000,-500.0,0.00012365,2]
[422847707,1779522641000,-500.0,0.00012365,2]
[422847737,1779522641000,-500.0,0.00012365,2]
[422847739,1779522641000,-500.0,0.00012365,2]
[422847741,1779522641000,-500.0,0.00012365,2]
[422847750,1779522641000,-425.537972,0.00012365,2]
[422847748,1779522641000,-500.0,0.00012365,2]
[422847743,1779522641000,-500.0,0.00012365,2]
[422847745,1779522641000,-500.0,0.00012365,2]
[422847752,1779522641000,-154.033326,0.00012374,2]
[422847754,1779522641000,-151.0,0.00012374,2]
[422847756,1779522641000,-625.0,0.00012374,2]
[422847646,1779522641000,-500.0,0.00012365,2]
[422847687,1779522641000,-500.0,0.00012365,2]
[422847758,1779522641000,-927.0,0.00012374,2]
[422847735,1779522641000,-500.0,0.00012365,2]
[422847689,1779522641000,-500.0,0.00012365,2]
[422847683,1779522641000,-500.0,0.00012365,2]
[422847634,1779522641000,-500.0,0.00012365,2]
[422847648,1779522641000,-500.0,0.00012365,2]
[422847636,1779522641000,-500.0,0.00012365,2]
[422847638,1779522641000,-500.0,0.00012365,2]
[422847650,1779522641000,-500.0,0.00012365,2]
[422847640,1779522641000,-500.0,0.00012365,2]
[422847654,1779522641000,-500.0,0.00012365,2]
[422847656,1779522641000,-500.0,0.00012365,2]
[422847660,1779522641000,-500.0,0.00012365,2]
[422847658,1779522641000,-500.0,0.00012365,2]
[422847652,1779522641000,-500.0,0.00012365,2]
[422847662,1779522641000,-500.0,0.00012365,2]
[422847679,1779522641000,-500.0,0.00012365,2]
[422847677,1779522641000,-500.0,0.00012365,2]
[422847681,1779522641000,-500.0,0.00012365,2]
[422847672,1779522641000,-500.0,0.00012365,2]
[422847675,1779522641000,-500.0,0.00012365,2]
[422847668,1779522641000,-500.0,0.00012365,2]
[422847666,1779522641000,-500.0,0.00012365,2]
[422847664,1779522641000,-500.0,0.00012365,2]
[422847670,1779522641000,-500.0,0.00012365,2]
[422847790,1779522642000,-3292.0,0.00012638,2]
[422847807,1779522642000,-150.0,0.00012649,2]
[422847805,1779522642000,-150.0,0.00012649,2]
[422847801,1779522642000,-150.0,0.00012649,2]
[422847784,1779522642000,-168.93194,0.00012613,2]
[422847797,1779522642000,-150.0,0.00012649,2]
[422847793,1779522642000,-150.0,0.00012649,2]
[422847799,1779522642000,-150.0,0.00012649,2]
[422847795,1779522642000,-150.19263054,0.00012649,2]
[422847788,1779522642000,-736.0,0.00012638,2]
[422847786,1779522642000,-185.055115,0.00012613,2]
[422847760,1779522642000,-1355.0,0.00012374,2]
[422847781,1779522642000,-397.345437,0.00012613,2]
[422847779,1779522642000,-212.037234,0.00012613,2]
[422847777,1779522642000,-330.0,0.00012466,3]
[422847775,1779522642000,-221.17,0.00012422,2]
[422847770,1779522642000,-931.0,0.00012374,2]
[422847764,1779522642000,-1283.232,0.00012374,2]
[422847768,1779522642000,-150.0,0.00012374,2]
[422847762,1779522642000,-285.488,0.00012374,2]
[422847773,1779522642000,-3635.0,0.00012374,2]
[422847766,1779522642000,-1224.0,0.00012374,2]
[422847810,1779522642000,-150.0,0.00012649,2]
[422847783,1779522642000,-238.547609,0.00012613,2]
[422847809,1779522642000,-150.0,0.00012649,2]
[422847802,1779522642000,-150.0,0.00012649,2]
[422847812,1779522642000,-11016.91447822,0.00012697,2]
[422847813,1779522642000,-150.0,0.0001272,2]
[422847930,1779522642000,-301.027556,0.0001287,2]
[422847928,1779522642000,-301.027556,0.0001287,2]
[422847926,1779522642000,-301.027556,0.0001287,2]
[422847924,1779522642000,-55216.2089879,0.0001287,2]
[422847922,1779522642000,-462.24163784,0.00011024,2]
[422847918,1779522642000,-1575.60795247,0.0001287,2]
[422847908,1779522642000,-27676.12156824,0.0001287,2]
[422847910,1779522642000,-3811.15883904,0.0001287,2]
[422847915,1779522642000,-744.8,0.0001287,2]
[422847906,1779522642000,-6613.25000001,0.0001287,2]
[422847903,1779522642000,-1239.63878961,0.0001287,2]
[422847913,1779522642000,-301.12,0.0001287,2]
[422847832,1779522642000,-150.0,0.0001286,2]
[422847830,1779522642000,-150.0,0.0001285,2]
[422847828,1779522642000,-198.86724625,0.00012843,2]
[422847826,1779522642000,-156.587,0.00012843,2]
[422847814,1779522642000,-9882.30041285,0.00012722,2]
[422847824,1779522642000,-151.0,0.00012843,2]
[422847822,1779522642000,-150.0,0.00012805,2]
[422847811,1779522642000,-150.0,0.00012649,2]
[422847820,1779522642000,-150.0,0.0001279,2]
[422847816,1779522642000,-166.66,0.00012779,2]
[422847834,1779522642000,-8002.56281984,0.0001287,2]
[422847818,1779522642000,-1873.71047012,0.00012785,2]
[422848013,1779522643000,-318.02379621,0.000133,2]
[422848009,1779522643000,-150.0,0.00013282,2]
[422848005,1779522643000,-9882.30041285,0.00013266,2]
[422848003,1779522643000,-150.0,0.00013252,2]
[422847993,1779522643000,-151.0,0.00013151,2]
[422847997,1779522643000,-150.0,0.00013212,2]
[422847999,1779522643000,-150.0,0.00013212,2]
[422848007,1779522643000,-150.0,0.00013274,2]
[422848011,1779522643000,-2000.0,0.00013291,2]
[422848001,1779522643000,-11016.91447822,0.00013248,2]
[422848021,1779522643000,-150.0,0.00013352,2]
[422848047,1779522643000,-150.0,0.00013653,2]
[422848015,1779522643000,-150.0,0.00013352,2]
[422848017,1779522643000,-150.0,0.00013352,2]
[422848023,1779522643000,-163.0,0.000134,2]
[422848025,1779522643000,-150.0,0.00013422,2]
[422848027,1779522643000,-150.0,0.0001343,2]
[422848029,1779522643000,-150.0,0.00013452,2]
[422848031,1779522643000,-210.56,0.00013466,2]
[422848033,1779522643000,-1873.71047012,0.0001349,2]
[422848035,1779522643000,-150.0,0.00013493,2]
[422848043,1779522643000,-150.0,0.00013586,2]
[422847995,1779522643000,-210.275453,0.00013151,2]
[422848041,1779522643000,-150.0,0.00013586,2]
[422848045,1779522643000,-150.0,0.00013633,2]
[422848019,1779522643000,-150.0,0.00013352,2]
[422847991,1779522643000,-150.0,0.00013141,2]
[422847967,1779522643000,-373.0,0.00013055,5]
[422847987,1779522643000,-150.0,0.00013118,2]
[422848053,1779522643000,-500.0,0.00013698,2]
[422847935,1779522643000,-301.027564,0.0001287,2]
[422847937,1779522643000,-151.0,0.0001287,2]
[422847941,1779522643000,-238.695986,0.0001287,2]
[422847939,1779522643000,-151.0,0.0001287,2]
[422847947,1779522643000,-4000.0,0.000129,4]
[422847951,1779522643000,-233.1563622,0.00012913,2]
[422847955,1779522643000,-150.0,0.00012928,2]
[422847959,1779522643000,-150.0,0.0001293,2]
[422847945,1779522643000,-151.0,0.00012893,2]
[422847949,1779522643000,-210.56,0.00012905,2]
[422847943,1779522643000,-150.0,0.00012884,2]
[422847953,1779522643000,-331.0354365,0.00012913,2]
[422847957,1779522643000,-150.0,0.0001293,2]
[422847961,1779522643000,-150.0,0.00012962,2]
[422847963,1779522643000,-150.0,0.00013001,2]
[422847965,1779522643000,-150.0,0.00013051,2]
[422847969,1779522643000,-605.0,0.00013055,5]
[422847971,1779522643000,-150.0,0.00013071,2]
[422847973,1779522643000,-1900.0,0.00013082,2]
[422847975,1779522643000,-800.0,0.00013082,2]
[422847981,1779522643000,-1000.0,0.000131,2]
[422847983,1779522643000,-315.0,0.000131,2]
[422847977,1779522643000,-500.0,0.00013082,2]
[422847985,1779522643000,-885.0,0.000131,2]
[422847989,1779522643000,-150.0,0.00013118,2]
[422848056,1779522643000,-506.60979522,0.00013698,2]
[422847979,1779522643000,-308.0,0.000131,2]
[422848050,1779522643000,-221.17,0.00013664,2]
[422848113,1779522643000,-500.0,0.00013698,2]
[422848115,1779522643000,-500.0,0.00013698,2]
[422848117,1779522643000,-500.0,0.00013698,2]
[422848119,1779522643000,-500.0,0.00013698,2]
[422848121,1779522643000,-500.0,0.00013698,2]
[422848123,1779522643000,-642.59813765,0.00013698,2]
[422848125,1779522643000,-500.0,0.00013698,2]
[422848129,1779522643000,-500.0,0.00013698,2]
[422848127,1779522643000,-500.0,0.00013698,2]
[422848133,1779522643000,-500.0,0.00013698,2]
[422848135,1779522643000,-500.0,0.00013698,2]
[422848131,1779522643000,-500.0,0.00013698,2]
[422848137,1779522643000,-500.0,0.00013698,2]
[422848139,1779522643000,-500.0,0.00013698,2]
[422848143,1779522643000,-500.0,0.00013698,2]
[422848141,1779522643000,-500.0,0.00013698,2]
[422848145,1779522643000,-500.0,0.00013698,2]
[422848147,1779522643000,-200.0,0.00013699,2]
[422848149,1779522643000,-2500.0,0.00013699,2]
[422848151,1779522643000,-153.293974,0.00013699,2]
[422848155,1779522643000,-7019.83,0.00013699,2]
[422848153,1779522643000,-166.66,0.00013699,2]
[422848159,1779522643000,-164.764743,0.00013699,2]
[422848157,1779522643000,-151.0,0.00013699,2]
[422848039,1779522643000,-150.0,0.00013563,2]
[422848111,1779522643000,-500.0,0.00013698,2]
[422848110,1779522643000,-500.0,0.00013698,2]
[422848161,1779522643000,-151.0,0.00013699,2]
[422848105,1779522643000,-500.0,0.00013698,2]
[422848107,1779522643000,-521.10233812,0.00013698,2]
[422848051,1779522643000,-500.88881958,0.00013698,2]
[422848058,1779522643000,-500.0,0.00013698,2]
[422848059,1779522643000,-522.89181722,0.00013698,2]
[422848061,1779522643000,-500.0,0.00013698,2]
[422848063,1779522643000,-500.0,0.00013698,2]
[422848066,1779522643000,-500.0,0.00013698,2]
[422848067,1779522643000,-500.0,0.00013698,2]
[422848070,1779522643000,-500.0,0.00013698,2]
[422848071,1779522643000,-382.38269634,0.00013698,2]
[422848075,1779522643000,-500.0,0.00013698,2]
[422848073,1779522643000,-500.0,0.00013698,2]
[422848077,1779522643000,-500.0,0.00013698,2]
[422848037,1779522643000,-150.0,0.00013493,2]
[422848081,1779522643000,-500.0,0.00013698,2]
[422848079,1779522643000,-500.0,0.00013698,2]
[422848101,1779522643000,-500.0,0.00013698,2]
[422848099,1779522643000,-1337.64,0.00013698,2]
[422848097,1779522643000,-1337.64,0.00013698,2]
[422848093,1779522643000,-500.0,0.00013698,2]
[422848103,1779522643000,-500.0,0.00013698,2]
[422848095,1779522643000,-1337.64,0.00013698,2]
[422848090,1779522643000,-500.0,0.00013698,2]
[422848088,1779522643000,-450.91438764,0.00013698,2]
[422848085,1779522643000,-500.0,0.00013698,2]
[422848083,1779522643000,-500.0,0.00013698,2]
[422848092,1779522643000,-500.0,0.00013698,2]
[422848243,1779522644000,-378.0,0.00013699,2]
[422848245,1779522644000,-378.0,0.00013699,2]
[422848241,1779522644000,-378.0,0.00013699,2]
[422848238,1779522644000,-271.8920984,0.00013699,2]
[422848234,1779522644000,-378.0,0.00013699,2]
[422848232,1779522644000,-378.0,0.00013699,2]
[422848228,1779522644000,-378.0,0.00013699,2]
[422848230,1779522644000,-378.0,0.00013699,2]
[422848249,1779522644000,-378.0,0.00013699,2]
[422848236,1779522644000,-378.0,0.00013699,2]
[422848226,1779522644000,-378.0,0.00013699,2]
[422848258,1779522644000,-378.0,0.00013699,2]
[422848251,1779522644000,-378.0,0.00013699,2]
[422848256,1779522644000,-378.0,0.00013699,2]
[422848262,1779522644000,-408.0,0.00013699,2]
[422848253,1779522644000,-378.0,0.00013699,2]